fUSD/lending_fUSD_20260112
["ID","MTS","AMOUNT","RATE_DAILY","PERIOD"]
[401397711,1768180245142,-550.0,0.00016414,2]
[401397712,1768180245151,-150.0,0.00016416,2]
[401397714,1768180245161,-2007.419938,0.00016425,2]
[401397715,1768180245171,-449.41631951,0.00016432,2]
[401397717,1768180245181,-151.0,0.00016438,2]
[401397719,1768180245191,-150.0,0.0001644,2]
[401397720,1768180245201,-69594.4420444,0.00016442,2]
[401397722,1768180245211,-150.0,0.00016464,2]
[401397724,1768180245220,-550.0,0.00016469,2]
[401397726,1768180245230,-150.0,0.00016488,2]
[401397727,1768180245239,-150.0,0.00016512,2]
[401397729,1768180245248,-550.0,0.00016524,2]
[401397731,1768180245258,-150.0,0.00016536,2]
[401397732,1768180245268,-150.0,0.0001656,2]
[401397733,1768180245277,-150.0,0.0001656,2]
[401397734,1768180245286,-550.0,0.00016579,2]
[401397735,1768180245296,-150.0,0.00016584,2]
[401397736,1768180245306,-150.0,0.00016608,2]
[401397737,1768180245315,-150.0,0.00016632,2]
[401397738,1768180245324,-550.0,0.00016633,2]
[401397739,1768180245333,-150.0,0.0001665,2]
[401397740,1768180245344,-150.0,0.00016656,2]
[401397741,1768180245353,-150.0,0.0001668,2]
[401397742,1768180245362,-550.0,0.00016688,2]
[401397743,1768180245371,-150.0,0.00016704,2]
[401397744,1768180245383,-150.0,0.00016728,2]
[401397745,1768180245393,-550.0,0.00016743,2]
[401397746,1768180245403,-150.0,0.00016752,2]
[401397747,1768180245413,-4080.65019457,0.00016758,2]
[401397749,1768180245423,-150.0,0.00016776,2]
[401397753,1768180245433,-3060.63,0.00016778,2]
[401397755,1768180245442,-360.77582832,0.00016792,2]
[401397758,1768180245452,-171.49,0.00016792,2]
[401397760,1768180245462,-171.49,0.00016792,2]
[401397762,1768180245471,-2007.419938,0.00016794,2]
[401397764,1768180245481,-550.0,0.00016798,2]
[401397766,1768180245490,-150.0,0.000168,2]
[401397768,1768180245499,-150.0,0.000168,2]
[401397770,1768180245509,-150.0,0.000168,2]
[401397772,1768180245519,-14100.0,0.000168,6]
[401397774,1768180245529,-150.0,0.00016824,2]
[401397776,1768180245538,-332.14,0.00016843,2]
[401397778,1768180245548,-150.0,0.00016848,2]
[401397779,1768180245558,-433.0,0.00016848,2]
[401397781,1768180245567,-550.0,0.00016852,2]
[401397784,1768180245577,-150.0,0.00016872,2]
[401397786,1768180245587,-171.49,0.00016878,2]
[401397787,1768180245597,-150.0,0.00016896,2]
[401397789,1768180245606,-18800.0,0.000169,6]
[401397791,1768180245616,-550.7076,0.00016907,2]
[401397793,1768180245626,-150.0,0.0001692,2]
[401397795,1768180245636,-150.0,0.0001692,2]
[401397797,1768180245645,-187.53,0.00016935,2]
[401397799,1768180245655,-150.0,0.00016944,2]
[401397801,1768180245665,-150.0,0.00016968,2]
[401397803,1768180245674,-195.93,0.0001698,2]
[401397805,1768180245684,-150.0,0.00016992,2]
[401397808,1768180245694,-150.0,0.00017016,2]
[401397810,1768180245704,-150.0,0.0001704,2]
[401397812,1768180245713,-661.82,0.00017041,2]
[401397814,1768180245723,-661.82,0.00017041,2]
[401397816,1768180245732,-661.82,0.00017041,2]
[401397818,1768180245741,-661.82,0.00017041,2]
[401397820,1768180245750,-661.82,0.00017041,2]
[401397821,1768180245760,-661.82,0.00017041,2]
[401397822,1768180245769,-661.82,0.00017041,2]
[401397823,1768180245779,-322.6107,0.00017057,2]
[401397824,1768180245789,-620.0,0.00017057,2]
[401397825,1768180245799,-998.0,0.00017057,2]
[401397826,1768180245809,-533.88981491,0.00017057,2]
[401397827,1768180245819,-150.0,0.00017064,2]
[401397828,1768180245829,-500.0,0.00017073,2]
[401397829,1768180245839,-500.0,0.00017073,2]
[401397830,1768180245848,-500.66892907,0.00017073,2]
[401397831,1768180245858,-500.0,0.00017073,2]
[401397832,1768180245868,-500.91201932,0.00017073,2]
[401397833,1768180245878,-500.0,0.00017073,2]
[401397834,1768180245888,-647.0605734,0.00017073,2]
[401397835,1768180245899,-500.0,0.00017073,2]
[401397836,1768180245908,-501.18596631,0.00017073,2]
[401397837,1768180245918,-500.88678731,0.00017073,2]
[401397838,1768180245927,-500.0,0.00017073,2]
[401397839,1768180245937,-500.0,0.00017073,2]
[401397840,1768180245947,-500.0,0.00017073,2]
[401397841,1768180245957,-500.0,0.00017073,2]
[401397842,1768180245967,-500.0,0.00017073,2]
[401397843,1768180245977,-150.0,0.00017088,2]
[401397844,1768180245986,-150.0,0.000171,2]
[401397845,1768180245995,-30000.0,0.000171,2]
[401397846,1768180246005,-1538.5,0.00017105,2]
[401397847,1768180246016,-150.0,0.00017112,2]
[401397848,1768180246026,-150.0,0.00017136,2]
[401397849,1768180246036,-4080.65019457,0.00017139,2]
[401397850,1768180246046,-163.05,0.00017144,2]
[401397851,1768180246057,-150.0,0.0001716,2]
[401397852,1768180246067,-2007.419938,0.00017162,2]
[401397853,1768180246076,-244.74,0.00017172,2]
[401397854,1768180246085,-171.49,0.00017178,2]
[401397855,1768180246096,-304.18,0.00017178,2]
[401397857,1768180246105,-325.87,0.00017178,2]
[401397859,1768180246115,-156.55,0.00017178,2]
[401397861,1768180246124,-342.35,0.00017178,2]
[401397863,1768180246134,-150.0,0.00017184,2]
[401397865,1768180246144,-1538.5,0.00017186,2]
[401397866,1768180246154,-500.0,0.00017188,2]
[401397867,1768180246163,-150.0,0.00017208,2]
[401397868,1768180246174,-150.0,0.00017232,2]
[401397869,1768180246184,-250.0,0.00017249,2]
[401397870,1768180246193,-150.0,0.00017256,2]
[401397871,1768180246203,-1538.5,0.00017268,2]
[401397872,1768180246212,-150.0,0.0001728,2]
[401397873,1768180246222,-150.0,0.0001728,2]
[401397874,1768180246231,-161.78,0.0001728,2]
[401397875,1768180246242,-747.39,0.00017289,2]
[401397876,1768180246251,-150.0,0.00017304,2]
[401397877,1768180246261,-150.0,0.00017328,2]
[401397878,1768180246270,-500.0,0.00017342,2]
[401397879,1768180246279,-360.77582832,0.00017346,2]
[401397880,1768180246289,-1538.5,0.00017349,2]
[401397881,1768180246298,-150.0,0.00017352,2]
[401397882,1768180246307,-1000.0,0.00017354,2]
[401397883,1768180246317,-3873.70846487,0.00017372,2]
[401397884,1768180246326,-150.0,0.00017376,2]
[401397885,1768180246335,-150.0,0.000174,2]
[401397886,1768180246344,-150.0,0.000174,2]
[401397887,1768180246353,-150.0,0.000174,2]
[401397888,1768180246363,-1504.84669614,0.000174,2]
[401397889,1768180246373,-23600.0,0.000174,6]
[401397890,1768180246385,-195.93,0.00017401,2]
[401397891,1768180246399,-150.0,0.00017424,2]
[401397892,1768180246408,-28016.0,0.00017425,2]
[401397893,1768180246418,-1538.5,0.0001743,2]
[401397894,1768180246430,-158.64414453,0.00017442,2]
[401397895,1768180246440,-150.0,0.00017448,2]
[401397896,1768180246449,-261.83932266,0.00017453,2]
[401397897,1768180246459,-150.0,0.00017453,2]
[401397898,1768180246470,-159886.04218668,0.00017454,2]
[401397899,1768180246480,-260087.84903997,0.00017454,2]
[401397900,1768180246489,-367321.66729365,0.00017454,2]
[401397901,1768180246499,-475306.4943,0.00017454,2]
[401397902,1768180246508,-150.0,0.00017472,2]
[401397903,1768180246518,-3873.70846485,0.00017478,2]
[401397904,1768180246528,-150.0,0.00017496,2]
[401397905,1768180246537,-4700.0,0.000175,6]
[401397906,1768180246547,-1538.5,0.00017512,2]
[401397907,1768180246556,-2351.0,0.00017512,2]
[401397908,1768180246566,-4080.65019457,0.00017519,2]
[401397909,1768180246575,-150.0,0.0001752,2]
[401397910,1768180246585,-552.982,0.0001753,2]
[401397911,1768180246594,-2007.419938,0.00017531,2]
[401397912,1768180246603,-150.0,0.00017544,2]
[401397913,1768180246612,-150.0,0.0001755,2]
[401397914,1768180246621,-150.0,0.00017568,2]
[401397915,1768180246631,-1000.0,0.0001758,2]
[401397916,1768180246640,-3873.70846485,0.00017583,2]
[401397917,1768180246650,-150.0,0.00017592,2]
[401397918,1768180246659,-1538.5,0.00017593,2]
[401397919,1768180246668,-4700.0,0.000176,6]
[401397920,1768180246677,-553.64373807,0.00017605,2]
[401397921,1768180246687,-171.49,0.00017614,2]
[401397922,1768180246696,-933.89,0.00017614,2]
[401397923,1768180246706,-150.0,0.00017616,2]
[401397924,1768180246715,-1000.0,0.00017621,2]
[401397925,1768180246724,-408.10299042,0.00017621,2]
[401397926,1768180246733,-1000.0,0.00017621,2]
[401397927,1768180247082,-1000.0,0.00017621,2]
[401397928,1768180247093,-500.0,0.00017621,2]
[401397929,1768180247103,-1000.0,0.00017621,2]
[401397930,1768180247113,-500.0,0.00017621,2]
[401397931,1768180247123,-1000.0,0.00017621,2]
[401397932,1768180247132,-712.04095186,0.00017627,2]
[401397933,1768180247142,-150.0,0.0001764,2]
[401397934,1768180247152,-150.0,0.0001764,2]
[401397935,1768180247162,-6725.480199,0.0001764,2]
[401397936,1768180247172,-4820.0,0.00017653,2]
[401397937,1768180247181,-2437.0,0.00017653,2]
[401397938,1768180247191,-6555.0,0.00017653,2]
[401397939,1768180247200,-150.0,0.00017664,2]
[401397940,1768180247211,-25000.0,0.00017671,3]
[401397941,1768180247220,-1538.5,0.00017675,2]
[401397942,1768180247230,-25000.0,0.0001768,3]
[401397943,1768180247239,-150.0,0.00017688,2]
[401397944,1768180247249,-25000.0,0.00017689,3]
[401397945,1768180247259,-3873.70846485,0.00017689,2]
[401397946,1768180247268,-25000.0,0.00017698,3]
[401397947,1768180247277,-660.81,0.00017698,2]
[401397948,1768180247286,-1000.0,0.000177,2]
[401397949,1768180247296,-4700.0,0.000177,6]
[401397950,1768180247305,-25000.0,0.00017706,3]
[401397951,1768180247315,-150.0,0.00017712,2]
[401397952,1768180247324,-25000.0,0.00017715,3]
[401397953,1768180247333,-25000.0,0.00017724,3]
[401397954,1768180247346,-158.5859407,0.00017726,2]
[401397955,1768180247356,-150.0,0.00017726,2]
[401397956,1768180247365,-150.0,0.00017726,2]
[401397957,1768180247375,-876.64412115,0.0001773,2]
[401397958,1768180247387,-25000.0,0.00017733,3]
[401397959,1768180247397,-150.0,0.00017736,2]
[401397960,1768180247407,-25000.0,0.00017742,3]
[401397961,1768180247416,-3740.1586,0.00017755,2]
[401397962,1768180247427,-1538.5,0.00017756,2]
[401397963,1768180247436,-25000.0,0.00017759,3]
[401397964,1768180247446,-150.0,0.0001776,2]
[401397965,1768180247456,-25000.0,0.00017768,3]
[401397966,1768180247466,-25000.0,0.00017777,3]
[401397967,1768180247476,-150.0,0.00017781,2]
[401397968,1768180247485,-150.0,0.00017781,2]
[401397969,1768180247495,-150.0,0.00017784,2]
[401397970,1768180247504,-25000.0,0.00017786,3]
[401397971,1768180247514,-5034.0,0.00017788,2]
[401397972,1768180247523,-25000.0,0.00017794,3]
[401397973,1768180247533,-3873.70846485,0.00017794,2]
[401397974,1768180247542,-1000.0,0.000178,2]
[401397975,1768180247552,-4700.0,0.000178,6]
[401397976,1768180247561,-25000.0,0.00017803,3]
[401397977,1768180247570,-156.587,0.00017807,2]
[401397978,1768180247579,-150.0,0.00017808,2]
[401397979,1768180247588,-150.0,0.00017808,2]
[401397980,1768180247597,-25000.0,0.00017812,3]
[401397981,1768180247607,-2182.33135,0.0001782,2]
[401397982,1768180247616,-2182.33135,0.0001782,2]
[401397983,1768180247625,-25000.0,0.00017821,3]
[401397984,1768180247634,-181.855,0.00017822,2]
[401397985,1768180247643,-2707.278,0.00017822,2]
[401397986,1768180247654,-25000.0,0.0001783,3]
[401397987,1768180247663,-2182.33135,0.0001783,2]
[401397988,1768180247672,-26895.57621128,0.0001783,2]
[401397989,1768180247681,-150.0,0.00017832,2]
[401397990,1768180247690,-326.1,0.00017832,2]
[401397991,1768180247699,-158.04838682,0.00017836,2]
[401397992,1768180247708,-203.14661257,0.00017836,2]
[401397993,1768180247717,-1538.5,0.00017837,2]
[401397994,1768180247727,-25000.0,0.00017838,3]
[401397995,1768180247736,-195.93,0.00017844,2]
[401397996,1768180247746,-5888.0,0.00017844,2]
[401397997,1768180247755,-500.0,0.00017846,2]
[401397998,1768180247764,-25000.0,0.00017847,3]
[401397999,1768180247774,-200.0,0.00017855,2]
[401398000,1768180247783,-150.0,0.00017856,2]
[401398001,1768180247792,-200.0,0.00017856,2]
[401398002,1768180247801,-25000.0,0.00017856,3]
[401398003,1768180247811,-2182.33135,0.0001786,2]
[401398004,1768180247820,-25000.0,0.00017865,3]
[401398005,1768180247830,-195.93,0.00017868,2]
[401398006,1768180247839,-150.0,0.0001787,2]
[401398007,1768180247848,-25000.0,0.00017874,3]
[401398008,1768180247858,-1116.964948,0.00017874,2]
[401398009,1768180247868,-1116.964948,0.00017874,2]
[401398010,1768180247878,-1116.964948,0.00017874,2]
[401398011,1768180247888,-418.545764,0.00017874,2]
[401398012,1768180247898,-1116.964948,0.00017874,2]
[401398013,1768180247907,-418.545764,0.00017874,2]
[401398014,1768180247917,-418.545764,0.00017874,2]
[401398015,1768180247926,-418.545764,0.00017874,2]
[401398016,1768180247937,-5608.720634,0.00017874,2]
[401398017,1768180247948,-160.818495,0.00017874,2]
[401398018,1768180247958,-151.0,0.00017874,2]
[401398019,1768180247967,-5608.720634,0.00017874,2]
[401398020,1768180247978,-3183.214585,0.00017874,2]
[401398021,1768180247987,-5608.720634,0.00017874,2]
[401398022,1768180247997,-3183.214585,0.00017874,2]
[401398023,1768180248007,-5608.720634,0.00017874,2]
[401398024,1768180248017,-3183.214585,0.00017874,2]
[401398025,1768180248027,-3183.214585,0.00017874,2]
[401398026,1768180248037,-1804.510502,0.00017874,2]
[401398027,1768180248047,-1804.510502,0.00017874,2]
[401398028,1768180248056,-1804.510502,0.00017874,2]
[401398029,1768180248066,-1804.510502,0.00017874,2]
[401398030,1768180248076,-177.7458724,0.00017878,3]
[401398031,1768180248086,-150.0,0.0001788,2]
[401398032,1768180248095,-2182.33135,0.0001788,2]
[401398033,1768180248105,-25000.0,0.00017882,3]
[401398034,1768180248115,-25000.0,0.00017891,3]
[401398035,1768180248125,-8363.3069,0.000179,2]
[401398036,1768180248135,-170.3827,0.000179,2]
[401398037,1768180248145,-6169.6898,0.000179,2]
[401398038,1768180248156,-1000.0,0.000179,2]
[401398039,1768180248165,-360.77582832,0.000179,2]
[401398040,1768180248176,-712.04095186,0.000179,2]
[401398041,1768180248185,-25000.0,0.000179,3]
[401398042,1768180248194,-1101.80682427,0.000179,2]
[401398043,1768180248203,-1101.80682427,0.000179,2]
[401398044,1768180248212,-1101.80682427,0.000179,2]
[401398045,1768180248221,-1101.80682427,0.000179,2]
[401398046,1768180248230,-1101.80682427,0.000179,2]
[401398047,1768180248239,-1101.80682427,0.000179,2]
[401398048,1768180248249,-1101.80682427,0.000179,2]
[401398049,1768180248259,-1101.80682427,0.000179,2]
[401398050,1768180248268,-1101.80682427,0.000179,2]
[401398051,1768180248277,-1101.80682427,0.000179,2]
[401398052,1768180248287,-5094.0,0.000179,6]
[401398053,1768180248297,-2007.419938,0.000179,2]
[401398054,1768180248306,-2761.794916,0.000179,2]
[401398055,1768180248316,-402.244329,0.000179,2]
[401398056,1768180248325,-322.064354,0.000179,2]
[401398057,1768180248335,-1008.598236,0.000179,2]
[401398058,1768180248344,-402.244329,0.000179,2]
[401398059,1768180248354,-322.064354,0.000179,2]
[401398060,1768180248364,-2761.794916,0.000179,2]
[401398061,1768180248373,-1008.598236,0.000179,2]
[401398062,1768180248385,-402.244329,0.000179,2]
[401398063,1768180248394,-2761.794916,0.000179,2]
[401398064,1768180248405,-322.064354,0.000179,2]
[401398065,1768180248414,-1008.598236,0.000179,2]
[401398066,1768180248423,-2761.794916,0.000179,2]
[401398067,1768180248446,-322.064354,0.000179,2]
[401398068,1768180248460,-1211.143036,0.000179,2]
[401398069,1768180248470,-402.244329,0.000179,2]
[401398070,1768180248482,-1008.598236,0.000179,2]
[401398071,1768180248492,-1211.143036,0.000179,2]
[401398072,1768180248504,-1211.143036,0.000179,2]
[401398073,1768180248515,-1447.300399,0.000179,2]
[401398074,1768180248526,-1211.143036,0.000179,2]
[401398075,1768180248537,-1447.300399,0.000179,2]
[401398076,1768180248547,-1447.300399,0.000179,2]
[401398077,1768180248558,-151.0,0.000179,2]
[401398078,1768180248568,-1447.300399,0.000179,2]
[401398079,1768180248577,-151.0,0.000179,2]
[401398080,1768180248587,-151.0,0.000179,2]
[401398081,1768180248597,-151.0,0.000179,2]
[401398082,1768180248606,-151.0,0.000179,2]
[401398083,1768180248616,-3174.084132,0.000179,2]
[401398084,1768180248626,-3174.084132,0.000179,2]
[401398085,1768180248636,-3174.084132,0.000179,2]
[401398086,1768180248646,-3174.084132,0.000179,2]
[401398087,1768180248658,-151.0,0.000179,2]
[401398088,1768180248668,-151.0,0.000179,2]
[401398089,1768180248678,-151.0,0.000179,2]
[401398090,1768180248688,-371.021125,0.000179,2]
[401398091,1768180248697,-371.021125,0.000179,2]
[401398092,1768180248707,-502.526553,0.000179,2]
[401398093,1768180248717,-371.021125,0.000179,2]
[401398094,1768180248727,-502.526553,0.000179,2]
[401398095,1768180248736,-371.021125,0.000179,2]
[401398096,1768180248745,-356.473476,0.000179,2]
[401398097,1768180248755,-151.0,0.000179,2]
[401398098,1768180248765,-502.526553,0.000179,2]
[401398099,1768180248775,-356.473476,0.000179,2]
[401398100,1768180248784,-151.0,0.000179,2]
[401398101,1768180248794,-502.526553,0.000179,2]
[401398102,1768180248808,-151.0,0.000179,2]
[401398103,1768180248818,-356.473476,0.000179,2]
[401398104,1768180248830,-151.0,0.000179,2]
[401398105,1768180248840,-151.0,0.000179,2]
[401398106,1768180248851,-356.473476,0.000179,2]
[401398107,1768180248861,-1000.0,0.000179,2]
[401398108,1768180248871,-380.563661,0.000179,2]
[401398109,1768180248881,-380.563661,0.000179,2]
[401398110,1768180248890,-380.563661,0.000179,2]
[401398111,1768180248902,-2099.125145,0.000179,2]
[401398112,1768180248912,-380.563661,0.000179,2]
[401398113,1768180248921,-2099.125145,0.000179,2]
[401398114,1768180248932,-2099.125145,0.000179,2]
[401398115,1768180248941,-2099.125145,0.000179,2]
[401398116,1768180248951,-2699.78784,0.000179,2]
[401398117,1768180248961,-2699.78784,0.000179,2]
[401398118,1768180248971,-717.6822893,0.000179,3]
[401398119,1768180248981,-2699.78784,0.000179,2]
[401398120,1768180248991,-2699.78784,0.000179,2]
[401398121,1768180249001,-151.0,0.000179,2]
[401398122,1768180249011,-151.0,0.000179,2]
[401398123,1768180249021,-151.0,0.000179,2]
[401398124,1768180249031,-151.0,0.000179,2]
[401398125,1768180249042,-185.729841,0.000179,2]
[401398126,1768180249052,-185.729841,0.000179,2]
[401398127,1768180249062,-185.729841,0.000179,2]
[401398128,1768180249073,-185.729841,0.000179,2]
[401398129,1768180249083,-3873.70846485,0.000179,2]
[401398130,1768180249094,-151.0,0.000179,2]
[401398131,1768180249104,-151.0,0.000179,2]
[401398132,1768180249114,-151.0,0.000179,2]
[401398133,1768180249124,-4080.65019457,0.000179,2]
[401398134,1768180249133,-703.668501,0.000179,2]
[401398135,1768180249143,-500.0,0.000179,2]
[401398136,1768180249158,-500.0,0.000179,2]
[401398137,1768180249174,-500.0,0.000179,2]
[401398138,1768180249183,-500.0,0.000179,2]
[401398139,1768180249193,-500.0,0.000179,2]
[401398140,1768180249204,-500.0,0.000179,2]
[401398141,1768180249213,-500.0,0.000179,2]
[401398142,1768180249223,-500.0,0.000179,2]
[401398143,1768180249233,-500.0,0.000179,2]
[401398144,1768180249242,-490.55811089,0.000179,2]
[401398145,1768180249253,-6717.0,0.000179,2]
[401398146,1768180249263,-150.0,0.00017904,2]
[401398147,1768180249272,-2182.33135,0.0001791,2]
[401398148,1768180249282,-1538.5,0.00017919,2]
[401398149,1768180249292,-150.0,0.00017928,2]
[401398150,1768180249301,-150.0,0.00017952,2]
[401398151,1768180249312,-500.0,0.00017972,2]
[401398152,1768180249321,-500.0,0.00017973,2]
[401398153,1768180249332,-500.0,0.00017973,2]
[401398154,1768180249343,-500.0,0.00017973,2]
[401398155,1768180249353,-500.0,0.00017973,2]
[401398156,1768180249363,-500.0,0.00017973,2]
[401398157,1768180249373,-500.0,0.00017973,2]
[401398158,1768180249386,-500.0,0.00017973,2]
[401398159,1768180249396,-195.06667749,0.00017973,2]
[401398160,1768180249406,-515.27642925,0.00017973,2]
[401398161,1768180249415,-500.0,0.00017973,2]
[401398162,1768180249426,-168.53464326,0.00017973,2]
[401398163,1768180249436,-500.0,0.00017973,2]
[401398164,1768180249446,-279.31517583,0.00017973,2]
[401398165,1768180249457,-500.0,0.00017973,2]
[401398166,1768180249467,-500.26639526,0.00017973,2]
[401398167,1768180249476,-500.18733725,0.00017973,2]
[401398168,1768180249486,-579.17548492,0.00017973,2]
[401398169,1768180249496,-500.0,0.00017973,2]
[401398170,1768180249506,-500.0,0.00017973,2]
[401398171,1768180249516,-500.0,0.00017973,2]
[401398172,1768180249526,-500.0,0.00017973,2]
[401398173,1768180249540,-578.02071049,0.00017973,2]
[401398174,1768180249551,-429.09119552,0.00017973,2]
[401398175,1768180249560,-500.0,0.00017973,2]
[401398176,1768180249570,-500.0,0.00017973,2]
[401398177,1768180249580,-500.0,0.00017973,2]
[401398178,1768180249590,-501.05787152,0.00017973,2]
[401398179,1768180249600,-500.0,0.00017973,2]
[401398180,1768180249610,-500.0,0.00017973,2]
[401398181,1768180249620,-500.0,0.00017973,2]
[401398182,1768180249630,-500.0,0.00017973,2]
[401398183,1768180249641,-500.0,0.00017973,2]
[401398184,1768180249653,-500.0,0.00017973,2]
[401398185,1768180249662,-398.03125352,0.00017973,2]
[401398186,1768180249672,-500.0,0.00017973,2]
[401398187,1768180249682,-500.0,0.00017973,2]
[401398188,1768180249692,-500.0,0.00017973,2]
[401398189,1768180249701,-500.0,0.00017973,2]
[401398190,1768180249712,-286.84842062,0.00017973,2]
[401398191,1768180249723,-500.0,0.00017973,2]
[401398192,1768180249733,-500.0,0.00017973,2]
[401398193,1768180249743,-500.0,0.00017973,2]
[401398194,1768180249753,-500.0,0.00017973,2]
[401398195,1768180249763,-500.0,0.00017973,2]
[401398196,1768180249773,-208.15073839,0.00017973,2]
[401398197,1768180249784,-500.0,0.00017973,2]
[401398198,1768180249794,-500.0,0.00017973,2]
[401398199,1768180249805,-500.0,0.00017973,2]
[401398200,1768180249815,-500.0,0.00017973,2]
[401398201,1768180249825,-546.15438132,0.00017973,2]
[401398202,1768180249835,-500.0,0.00017973,2]
[401398203,1768180249846,-500.0,0.00017973,2]
[401398204,1768180249857,-500.0,0.00017973,2]
[401398205,1768180249867,-500.0,0.00017973,2]
[401398206,1768180249877,-182.86859792,0.00017973,2]
[401398207,1768180249887,-500.0,0.00017973,2]
[401398208,1768180249900,-500.0,0.00017973,2]
[401398209,1768180249910,-500.0,0.00017973,2]
[401398210,1768180249920,-165.4000895,0.00017973,2]
[401398211,1768180249930,-555.025369,0.00017973,2]
[401398212,1768180249940,-150.0,0.00017976,2]
[401398213,1768180249951,-265.2,0.00017977,2]
[401398214,1768180249960,-152.75103688,0.00017982,2]
[401398215,1768180249970,-500.0,0.00017982,2]
[401398216,1768180249980,-13359.5235007,0.00017983,2]
[401398217,1768180249989,-500.00000001,0.0001799,2]
[401398218,1768180249999,-449.41631951,0.0001799,2]
[401398219,1768180250009,-449.41631951,0.0001799,2]
[401398220,1768180250019,-417.81485387,0.00017997,2]
[401398221,1768180250030,-300.0,0.00017999,2]
[401398222,1768180250040,-300.0,0.00017999,2]
[401398223,1768180250050,-300.0,0.00017999,2]
[401398224,1768180250060,-300.0,0.00017999,2]
[401398225,1768180250070,-673.04563665,0.00017999,2]
[401398226,1768180250080,-300.0,0.00017999,2]
[401398227,1768180250090,-666.0,0.00017999,2]
[401398228,1768180250099,-150.0,0.00018,2]
[401398229,1768180250109,-150.0,0.00018,2]
[401398230,1768180250119,-150.0,0.00018,2]
[401398231,1768180250128,-186.78675234,0.00018,2]
[401398232,1768180250138,-150.0,0.00018,2]
[401398233,1768180250150,-150.0,0.00018,2]
[401398234,1768180250160,-150.0,0.00018,2]
[401398235,1768180250170,-150.0,0.00018,2]
[401398236,1768180250180,-150.0,0.00018,2]
[401398237,1768180250190,-78007.47773826,0.00018,2]
[401398238,1768180250199,-1170991.12230988,0.00018,2]
[401398239,1768180251238,-729.25294462,0.00018,2]
[401398240,1768180251273,-925.9169098,0.00018,2]
[401398241,1768180251448,-414.11119063,0.00017653,2]
[401398242,1768180251465,-151.88880937,0.00017653,2]
[401398243,1768180251475,-720.37237059,0.00018,2]
[401398244,1768180251486,-63885.58399623,0.00018,2]
[401398245,1768180251750,-703.668501,0.000179,2]
[401398246,1768180251759,-18310.31517504,0.00018,2]
[401398247,1768180251798,-19056.80752848,0.00018,2]
[401398248,1768180251827,-1980.09168829,0.00018,2]
[401398249,1768180251838,-2187.70181487,0.00018,2]
[401398250,1768180251849,-1362.65454814,0.00018,2]
[401398251,1768180251860,-915.91999155,0.00018,2]
[401398252,1768180251871,-1110.06940007,0.00018,2]
[401398253,1768180259201,672.29,8.887e-05,2]
[401398254,1768180259427,672.29,9.336e-05,2]
[401398255,1768180259641,672.29,9.785e-05,2]
[401398256,1768180260202,672.29,0.00010235,2]
[401398257,1768180260268,672.29,0.00010684,2]
[401398258,1768180260338,672.29,0.00011134,2]
[401398259,1768180260550,672.29,0.00011583,2]
[401398260,1768180260798,672.29,0.00012032,2]
[401398261,1768180261034,672.29,0.00012482,2]